bitfinex-derivatives/quotes_BTCF0:USTF0_20241009
["timestamp","ask_amount","ask_price","bid_price","bid_amount"]
[1728491992074,0.44163,61898.0,61897.0,0.080831]
[1728491993874,0.44163,61898.0,61897.0,0.088831]
[1728491994581,0.44163,61898.0,61897.0,0.017]
[1728491995276,0.44163,61898.0,61897.0,0.097831]
[1728491996872,0.3608,61898.0,61897.0,0.097831]
[1728491997268,0.270827,61901.0,61897.0,0.39774136]
[1728491997269,0.19,61901.0,61897.0,0.39774136]
[1728491997467,0.0846,61903.0,61902.0,0.080825]
[1728491998878,0.0846,61903.0,61902.0,0.084825]
[1728491999981,0.0846,61903.0,61902.0,0.087825]
[1728492000181,0.00242354,61908.0,61902.0,0.007]
[1728492000384,0.00242354,61908.0,61907.0,0.080818]
[1728492001780,0.08324054,61908.0,61907.0,0.080818]
[1728492001978,0.08524054,61908.0,61907.0,0.080818]
[1728492002279,0.0872,61916.0,61913.0,0.01174646]
[1728492002485,0.168008,61916.0,61915.0,0.080808]
[1728492002680,0.168008,61916.0,61915.0,0.53057244]
[1728492003798,0.080803,61919.0,61915.0,0.72057244]
[1728492003977,0.080797,61924.0,61923.0,0.080794]
[1728492004183,0.080797,61924.0,61923.0,0.35388765]
[1728492004686,0.00242288,61927.0,61923.0,0.27309365]
[1728492004876,0.3608,61928.0,61927.0,0.09010912]
[1728492005081,0.3608,61928.0,61927.0,0.65265248]
[1728492005284,0.3608,61928.0,61927.0,0.21328129]
[1728492005586,0.3608,61928.0,61927.0,0.30986054]
[1728492006085,1.5,61933.0,61927.0,0.21328129]
[1728492006279,0.080791,61929.0,61928.0,0.21974882]
[1728492006585,0.080791,61929.0,61928.0,0.12317217]
[1728492007277,0.080791,61929.0,61928.0,0.20396317]
[1728492007680,0.270791,61929.0,61928.0,0.12317217]
[1728492008387,0.270791,61929.0,61927.0,0.01031712]
[1728492008388,0.080791,61928.0,61927.0,0.01031712]
[1728492008575,0.48444,61928.0,61922.0,0.08041234]
[1728492008777,0.080791,61928.0,61927.0,0.06432825]
[1728492009188,1.165231,61928.0,61927.0,0.06432825]
[1728492009376,1.08444,61928.0,61926.0,0.06432825]
[1728492009690,0.080794,61926.0,61925.0,0.06432825]
[1728492009889,0.270794,61926.0,61925.0,0.06432825]
[1728492010085,1.355234,61926.0,61925.0,0.06432825]
[1728492010475,0.48448,61925.0,61921.0,0.08041802]
[1728492010677,0.080804,61918.0,61917.0,0.01616]
[1728492010879,0.270804,61918.0,61917.0,0.01616]
[1728492011389,0.1663,61921.0,61920.0,0.080801]
[1728492011390,0.0808,61921.0,61920.0,0.080801]
[1728492011574,0.3608,61922.0,61918.0,0.08]
[1728492011781,0.3608,61922.0,61921.0,0.0808]
[1728492012092,0.3608,61922.0,61921.0,0.20395872]
[1728492012283,0.441599,61922.0,61921.0,0.20395872]
[1728492012592,0.49120287,61922.0,61921.0,0.0808]
[1728492013283,0.13040287,61922.0,61921.0,0.0808]
[1728492013988,0.13240287,61922.0,61921.0,0.0818]
[1728492014373,0.13240287,61922.0,61921.0,0.0828]
[1728492014784,0.13240209,61922.0,61921.0,0.0828]
[1728492015287,0.13240208,61922.0,61921.0,0.0828]
[1728492015671,0.13240208,61922.0,61921.0,0.002]
[1728492015877,0.13240208,61922.0,61909.0,0.080815]
[1728492015878,0.080813,61911.0,61909.0,0.080815]
[1728492016178,0.080816,61909.0,61908.0,0.165516]
[1728492016579,0.080816,61909.0,61908.0,0.17426544]
[1728492017076,0.080816,61909.0,61908.0,0.0847]
[1728492017280,0.080816,61909.0,61905.0,0.080821]
[1728492017281,0.06466,61906.0,61905.0,0.080821]
[1728492017787,0.080822,61904.0,61903.0,0.00136]
[1728492017993,0.080824,61903.0,61902.0,0.00242283]
[1728492018581,0.3608,61911.0,61905.0,0.080821]
[1728492018783,0.080819,61907.0,61905.0,0.080821]
[1728492018979,0.04961335,61906.0,61902.0,0.16914683]
[1728492019180,0.064664,61903.0,61902.0,0.00242283]
[1728492019391,0.30428156,61903.0,61902.0,0.00242283]
[1728492019693,0.11428156,61903.0,61902.0,0.00242283]
[1728492020378,0.064664,61903.0,61902.0,0.12960911]
[1728492020584,0.3608,61909.0,61902.0,0.15276911]
[1728492020794,0.19,61906.0,61903.0,0.12318628]
[1728492020984,0.080824,61903.0,61902.0,0.02958283]
[1728492021291,0.080824,61903.0,61902.0,0.02716]
[1728492021483,0.080824,61903.0,61892.0,0.09]
[1728492021484,0.080837,61893.0,61892.0,0.0038]
[1728492021682,0.270837,61893.0,61892.0,0.12320964]
[1728492022388,0.080837,61893.0,61892.0,0.12320964]
[1728492023891,0.080837,61893.0,61892.0,0.13720964]
[1728492024484,0.081837,61893.0,61892.0,0.15120964]
[1728492025193,0.081837,61893.0,61892.0,0.1512133]
[1728492025878,0.081837,61893.0,61892.0,0.15120988]
[1728492026303,0.081837,61893.0,61892.0,0.15120895]
[1728492027493,0.001,61893.0,61892.0,0.028]
[1728492027984,0.081837,61893.0,61892.0,0.028]
[1728492028982,0.001,61893.0,61892.0,0.125008]
[1728492029891,0.001,61893.0,61892.0,0.17326729]
[1728492030185,0.001,61893.0,61892.0,0.17324184]
[1728492030981,0.001,61893.0,61892.0,0.125008]
[1728492032291,0.0038,61904.0,61892.0,1.209728]
[1728492032292,0.01243386,61904.0,61892.0,1.209728]
[1728492032592,0.00863386,61904.0,61903.0,0.270824]
[1728492032778,0.0038,61915.0,61907.0,0.00511192]
[1728492032982,0.08081,61913.0,61911.0,0.080812]
[1728492033186,0.080813,61912.0,61907.0,0.55723192]
[1728492033387,0.080813,61911.0,61908.0,0.080817]
[1728492033889,0.3608,61916.0,61912.0,0.080812]
[1728492034099,0.3608,61916.0,61913.0,0.08081]
[1728492034100,0.441607,61916.0,61913.0,0.08081]
[1728492034480,0.453198,61923.0,61913.0,0.08081]
[1728492034481,0.080804,61918.0,61915.0,0.080807]
[1728492034988,0.358998,61923.0,61915.0,0.080807]
[1728492034989,0.080807,61916.0,61915.0,0.080807]
[1728492035189,0.080806,61917.0,61915.0,0.080807]
[1728492035381,0.006,61916.0,61915.0,0.080807]
[1728492035584,0.006,61916.0,61915.0,0.203968]
[1728492035980,0.080806,61917.0,61916.0,0.080807]
[1728492036682,0.080806,61917.0,61916.0,0.20396751]
[1728492036892,0.083806,61917.0,61916.0,0.20396751]
[1728492037697,0.003,61917.0,61916.0,0.20396751]
[1728492037994,0.080799,61922.0,61921.0,0.0808]
[1728492038988,0.080799,61922.0,61921.0,0.20395491]
[1728492039184,0.441596,61924.0,61923.0,0.080797]
[1728492039382,0.080796,61924.0,61923.0,0.080797]
[1728492039584,0.080792,61927.0,61926.0,0.080793]
[1728492040696,0.19872229,61930.0,61926.0,0.16120134]
[1728492041094,0.002,61927.0,61926.0,0.16120134]
[1728492041700,0.002,61927.0,61926.0,0.080793]
[1728492041900,0.082792,61927.0,61926.0,0.080793]
[1728492042098,0.084792,61927.0,61926.0,0.080793]
[1728492042400,0.04436492,61927.0,61926.0,0.080793]
[1728492043097,0.15191978,61927.0,61926.0,0.080793]
[1728492044597,0.080796,61924.0,61922.0,0.080797]
[1728492044788,0.04959892,61923.0,61921.0,0.00511]
[1728492045192,0.080799,61922.0,61921.0,0.00511]
[1728492045392,0.13039792,61922.0,61921.0,0.00511]
[1728492045594,0.13040056,61922.0,61921.0,0.00511]
[1728492046101,0.199,61924.0,61921.0,0.08591]
[1728492046102,0.009,61924.0,61921.0,0.08591]
[1728492046290,0.009,61924.0,61923.0,0.3608]
[1728492046488,0.004,61924.0,61923.0,0.441597]
[1728492047409,0.00242315,61931.0,61923.0,0.3608]
[1728492047597,0.04959519,61930.0,61929.0,0.080789]
[1728492047792,0.04959519,61930.0,61929.0,0.175389]
[1728492048200,0.13038319,61930.0,61929.0,0.175389]
[1728492049099,0.13538319,61930.0,61929.0,0.176389]
[1728492049294,0.13938319,61930.0,61929.0,0.176389]
[1728492049489,0.13938319,61930.0,61929.0,0.0956]
[1728492049694,0.13938319,61930.0,61929.0,0.001]
[1728492050296,0.13938347,61930.0,61929.0,0.001]
[1728492050501,0.089788,61930.0,61929.0,0.001]
[1728492054398,0.089788,61930.0,61929.0,0.08179]
[1728492055200,0.009,61930.0,61929.0,0.08179]
[1728492055603,0.089788,61930.0,61929.0,0.08179]
[1728492055801,0.089788,61930.0,61920.0,0.0038]
[1728492055802,0.080799,61922.0,61920.0,0.0038]
[1728492056107,0.080799,61922.0,61914.0,0.00242272]
[1728492056108,1.941599,61922.0,61914.0,0.00242272]
[1728492056319,2.131599,61922.0,61914.0,0.00242272]
[1728492056500,0.080808,61915.0,61914.0,0.00242272]
[1728492056808,0.631608,61915.0,61914.0,0.00242272]
[1728492058010,0.5508,61915.0,61906.0,0.080819]
[1728492058208,0.19,61910.0,61901.0,0.44252834]
[1728492058397,0.19,61906.0,61905.0,0.01616]
[1728492060408,0.19880245,61906.0,61905.0,0.01616]
[1728492061111,0.08083,61898.0,61897.0,0.09646841]
[1728492061413,0.08083,61898.0,61887.0,0.0038]
[1728492061414,0.080843,61888.0,61887.0,0.0038]
[1728492061604,0.08085,61883.0,61882.0,0.14609065]
[1728492061810,0.63165,61883.0,61882.0,0.14609065]
[1728492062009,1.71645,61883.0,61882.0,0.14609065]
[1728492062212,1.71645,61883.0,61882.0,0.14477065]
[1728492062513,0.080874,61864.0,61863.0,0.01657]
[1728492062706,0.631674,61864.0,61863.0,0.01657]
[1728492064700,0.632674,61864.0,61863.0,0.02657]
[1728492065511,0.632674,61864.0,61855.0,0.28358055]
[1728492065817,0.081285,61856.0,61855.0,0.28358055]
[1728492067107,0.081285,61856.0,61855.0,0.28658055]
[1728492067307,0.081285,61856.0,61855.0,0.30058055]
[1728492067515,0.081285,61856.0,61855.0,0.29758055]
[1728492067813,0.082285,61856.0,61855.0,0.29758055]
[1728492068012,0.0014,61856.0,61855.0,0.47358055]
[1728492068210,0.0024,61856.0,61855.0,0.56846655]
[1728492068411,0.0004,61864.0,61855.0,0.48798055]
[1728492068606,0.0004,61864.0,61863.0,0.631676]
[1728492068803,0.080862,61874.0,61868.0,0.080868]
[1728492069009,0.080863,61873.0,61869.0,0.5508]
[1728492069917,0.080865,61872.0,61869.0,0.631668]
[1728492070509,0.080865,61872.0,61869.0,0.441668]
[1728492071214,0.3608,61872.0,61869.0,0.003]
[1728492071407,0.080867,61870.0,61869.0,0.003]
[1728492073523,0.080867,61870.0,61869.0,0.006]
[1728492078315,0.078867,61870.0,61869.0,0.006]
[1728492078514,0.080874,61864.0,61863.0,0.0004]
[1728492078717,0.721674,61864.0,61863.0,0.0004]
[1728492078925,0.441674,61864.0,61863.0,0.0004]
[1728492079434,0.080874,61864.0,61863.0,0.0004]
[1728492079728,0.081874,61864.0,61863.0,0.0094]
[1728492080326,0.080868,61869.0,61863.0,0.0124]
[1728492080523,0.3608,61870.0,61863.0,0.0124]
[1728492080725,0.080861,61875.0,61865.0,0.28]
[1728492080925,0.080861,61875.0,61868.0,0.080868]
[1728492081128,0.080867,61870.0,61869.0,0.080868]
[1728492083119,0.080867,61870.0,61868.0,0.002]
[1728492083319,0.080868,61869.0,61868.0,0.002]
[1728492083723,0.080871,61867.0,61866.0,0.171272]
[1728492085931,0.081871,61867.0,61866.0,0.173272]
[1728492086637,0.082871,61867.0,61866.0,0.179272]
[1728492088331,0.082871,61867.0,61866.0,0.0984]
[1728492091126,0.080874,61864.0,61863.0,1e-06]
[1728492091325,0.080885,61856.0,61855.0,0.0004]
[1728492091628,2.221685,61856.0,61855.0,0.0004]
[1728492091823,2.706685,61856.0,61855.0,0.0004]
[1728492092653,2.57620433,61856.0,61855.0,0.21995363]
[1728492092934,2.47095554,61856.0,61855.0,0.123117]
[1728492093127,2.55284054,61856.0,61855.0,0.123117]
[1728492093528,2.55184054,61856.0,61855.0,0.21987473]
[1728492093724,2.55284054,61856.0,61855.0,0.21987473]
[1728492093933,2.49616862,61856.0,61855.0,0.26753229]
[1728492094130,2.49616862,61856.0,61855.0,0.27253229]
[1728492094834,2.49616862,61856.0,61855.0,0.12610536]
[1728492095038,2.01116862,61856.0,61855.0,0.12610536]
[1728492095222,2.01116862,61856.0,61855.0,0.0054]
[1728492096326,2.01941442,61856.0,61855.0,0.0054]
[1728492097036,0.32941442,61856.0,61855.0,0.0054]
[1728492097432,0.271885,61856.0,61855.0,0.0054]
[1728492098939,0.081885,61856.0,61855.0,0.0054]
[1728492101241,0.081885,61856.0,61855.0,0.12627667]
[1728492101436,1.50084,61862.0,61855.0,0.31627667]
[1728492101642,0.080878,61861.0,61860.0,0.080879]
[1728492102840,0.081878,61861.0,61860.0,0.080879]
[1728492103732,0.080881,61859.0,61858.0,0.0941]
[1728492104328,0.080881,61859.0,61858.0,0.174982]
[1728492104841,0.080881,61859.0,61853.0,0.01618]
[1728492104842,0.080886,61855.0,61853.0,0.01618]
[1728492105143,0.080886,61855.0,61845.0,0.0004]
[1728492105144,0.080891,61851.0,61845.0,0.0004]
[1728492105335,0.191291,61851.0,61845.0,0.0004]
[1728492105534,1.276331,61851.0,61845.0,0.0004]
[1728492105832,0.080898,61846.0,61845.0,0.0004]
[1728492106029,0.752098,61846.0,61845.0,0.0004]
[1728492106246,1.837178,61846.0,61845.0,0.26710631]
[1728492106445,1.927178,61846.0,61845.0,0.12207471]
[1728492107130,1.928178,61846.0,61845.0,0.22579562]
[1728492107335,1.929178,61846.0,61845.0,0.13007471]
[1728492107643,0.080901,61844.0,61843.0,0.0680821]
[1728492107836,0.080906,61840.0,61835.0,0.01618]
[1728492108037,0.722106,61840.0,61835.0,0.01618]
[1728492109437,0.723106,61840.0,61839.0,0.00036]
[1728492110447,0.724106,61840.0,61839.0,0.06576363]
[1728492110640,0.724106,61840.0,61839.0,0.00136]
[1728492112035,1.309226,61840.0,61839.0,0.00136]
[1728492112233,1.909226,61840.0,61839.0,0.00136]
[1728492112747,1.309226,61840.0,61839.0,0.00136]
[1728492112935,1.209226,61840.0,61839.0,0.00136]
[1728492113537,0.083306,61840.0,61839.0,0.00136]
[1728492113742,0.083306,61840.0,61839.0,0.06576363]
[1728492113943,0.083306,61840.0,61839.0,0.00136]
[1728492114147,0.083306,61840.0,61839.0,0.06576363]
[1728492114736,0.083306,61840.0,61839.0,0.00136]
[1728492115649,0.083306,61840.0,61839.0,0.09716]
[1728492115942,0.083306,61840.0,61839.0,0.178067]
[1728492116955,0.03472324,61840.0,61839.0,0.25858946]
[1728492117255,0.0024,61840.0,61839.0,0.25858946]
[1728492117461,0.0024,61840.0,61839.0,0.178067]
[1728492118061,0.0004,61844.0,61839.0,0.17768246]
[1728492118268,0.081302,61844.0,61843.0,0.080902]
[1728492118563,0.1521835,61844.0,61843.0,0.080902]
[1728492119254,0.1531835,61844.0,61843.0,0.080902]
[1728492119455,0.1541835,61844.0,61843.0,0.080902]
[1728492119952,0.1541835,61844.0,61843.0,0.081902]
[1728492120157,0.20385067,61844.0,61843.0,0.081902]
[1728492120462,0.34635299,61844.0,61843.0,0.001]
[1728492120949,0.20385067,61844.0,61843.0,0.081902]
[1728492121356,0.12294867,61844.0,61843.0,0.081902]
[1728492121558,0.0004,61846.0,61845.0,0.080899]
[1728492121754,0.0004,61851.0,61845.0,0.441699]
[1728492121959,0.080885,61856.0,61855.0,0.080886]
[1728492122152,0.00096001,61865.0,61860.0,0.080879]
[1728492122361,0.080881,61861.0,61860.0,0.080879]
[1728492124552,0.080881,61861.0,61853.0,0.0004]
[1728492124553,0.080888,61854.0,61853.0,0.0004]
[1728492124759,0.721688,61854.0,61853.0,0.0004]
[1728492125968,0.726688,61854.0,61853.0,0.0004]
[1728492126463,0.730688,61854.0,61853.0,0.0004]
[1728492126657,0.734688,61854.0,61853.0,0.0004]
[1728492126858,0.644688,61854.0,61853.0,0.0004]
[1728492127059,0.648688,61854.0,61853.0,0.0004]
[1728492128758,0.65679805,61854.0,61853.0,0.0004]
[1728492130660,1.14179805,61854.0,61853.0,0.0004]
[1728492130863,1.85179805,61854.0,61853.0,0.0004]
[1728492131758,3.35179805,61854.0,61853.0,0.0004]
[1728492133268,2.99099805,61854.0,61853.0,0.0004]
[1728492133467,3.22759805,61854.0,61843.0,0.0042]
[1728492133675,0.5512,61846.0,61823.0,0.0004]
[1728492133966,0.632127,61824.0,61823.0,0.0004]
[1728492135565,0.632127,61824.0,61823.0,0.0034]
[1728492135566,0.633127,61824.0,61823.0,0.0034]
[1728492135871,0.634127,61824.0,61823.0,0.0034]
[1728492136271,0.633127,61824.0,61823.0,0.0004]
[1728492136476,0.633127,61824.0,61823.0,0.0034]
[1728492136774,0.634127,61824.0,61823.0,0.0034]
[1728492138774,0.64240902,61824.0,61823.0,0.0034]
[1728492138975,0.0943,61828.0,61823.0,0.0034]
[1728492138976,0.080922,61828.0,61823.0,0.0034]
[1728492139272,0.080926,61825.0,61824.0,0.0941]
[1728492139569,0.19,61830.0,61824.0,0.0941]
[1728492139772,0.080921,61829.0,61824.0,0.0941]
[1728492140079,0.081922,61828.0,61827.0,0.080922]
[1728492140471,0.082922,61828.0,61827.0,0.080922]
[1728492141570,0.080914,61834.0,61833.0,0.080914]
[1728492141774,0.080918,61831.0,61829.0,0.08092]
[1728492142075,0.080918,61831.0,61830.0,0.080919]
[1728492142376,0.080913,61835.0,61833.0,0.080914]
[1728492142778,0.001,61834.0,61833.0,0.080914]
[1728492143279,0.00242692,61837.0,61836.0,0.080911]
[1728492143574,0.08091,61838.0,61836.0,0.080911]
[1728492143881,0.3265,61852.0,61835.0,0.3608]
[1728492143882,0.270895,61849.0,61835.0,0.3608]
[1728492144078,0.0004,61836.0,61835.0,0.3608]
[1728492144378,0.080902,61843.0,61842.0,0.080903]
[1728492144880,0.080906,61840.0,61839.0,0.080907]
[1728492145081,0.081306,61840.0,61839.0,0.080907]
[1728492146680,0.081306,61840.0,61839.0,0.084907]
[1728492147286,0.0004,61840.0,61839.0,0.084907]
[1728492147678,0.0004,61846.0,61845.0,0.080899]
[1728492147885,0.00326578,61854.0,61853.0,0.080889]
[1728492148081,0.00326578,61854.0,61853.0,0.441689]
[1728492148380,0.08331378,61854.0,61853.0,0.441689]
[1728492149194,0.09531378,61854.0,61853.0,0.441689]
[1728492149687,0.09131378,61854.0,61853.0,0.441689]
[1728492152385,0.09131378,61854.0,61853.0,0.3608]
[1728492152589,0.080891,61851.0,61850.0,0.01619]
[1728492152883,0.360891,61851.0,61850.0,0.01619]
[1728492153074,0.361291,61851.0,61850.0,0.01619]
[1728492153682,0.083291,61851.0,61850.0,0.01619]
[1728492153986,0.083291,61851.0,61850.0,0.457883]
[1728492154974,0.084291,61851.0,61850.0,0.457883]
[1728492155981,0.084291,61851.0,61850.0,0.097083]
[1728492156786,0.084291,61851.0,61850.0,0.01619]
[1728492159490,0.0034,61851.0,61850.0,0.097083]
[1728492159878,0.084291,61851.0,61850.0,0.097083]
[1728492160792,0.084291,61851.0,61850.0,0.01619]
[1728492162591,0.0034,61851.0,61850.0,0.01619]
[1728492162891,0.0034,61851.0,61850.0,0.377083]
[1728492164790,0.00242578,61854.0,61853.0,0.080889]
[1728492165895,0.00642578,61854.0,61853.0,0.080889]
[1728492166499,0.00642578,61854.0,61853.0,0.270889]
[1728492166995,0.01142578,61854.0,61853.0,0.270889]
[1728492167883,0.01142578,61854.0,61853.0,0.755889]
[1728492168091,0.01142578,61854.0,61853.0,1.355889]
[1728492168288,0.445477,61862.0,61861.0,0.080878]
[1728492168489,0.080873,61865.0,61864.0,0.080873]
[1728492168698,0.081714,61866.0,61865.0,0.080873]
[1728492168898,0.080874,61866.0,61865.0,0.441673]
[1728492170202,0.084874,61866.0,61865.0,0.441673]
[1728492171699,0.089874,61866.0,61865.0,0.441673]
[1728492172392,0.089874,61866.0,61865.0,0.631673]
[1728492173490,0.009,61866.0,61865.0,0.631673]
[1728492174396,0.009,61866.0,61865.0,0.63994564]
[1728492174702,0.007,61866.0,61865.0,0.63994564]
[1728492174997,0.006,61866.0,61865.0,0.63994564]
[1728492175393,0.080869,61869.0,61865.0,0.56407264]
[1728492175587,0.080869,61869.0,61868.0,0.080869]
[1728492176703,0.081869,61869.0,61868.0,0.080869]
[1728492177597,0.081869,61869.0,61868.0,0.270869]
[1728492177901,0.080857,61878.0,61877.0,0.080856]
[1728492178203,0.080857,61878.0,61877.0,0.270856]
[1728492178589,0.08328004,61879.0,61878.0,0.080856]
[1728492178799,0.00242504,61879.0,61878.0,0.441656]
[1728492180106,0.00942504,61879.0,61878.0,0.442656]
[1728492180605,0.09028004,61879.0,61878.0,0.442656]
[1728492180899,0.087855,61879.0,61878.0,0.3618]
[1728492181201,0.094855,61879.0,61878.0,0.002]
[1728492181591,0.284855,61879.0,61878.0,0.002]
[1728492182502,0.204,61879.0,61848.0,0.01062504]
[1728492182691,0.080891,61851.0,61848.0,0.00242504]
[1728492182897,0.270891,61851.0,61849.0,0.01618]
[1728492183097,1.770891,61851.0,61849.0,0.01618]
[1728492185603,1.777891,61851.0,61849.0,0.01618]
[1728492185903,1.79015985,61851.0,61849.0,0.01618]
[1728492186105,1.78315985,61851.0,61849.0,0.01618]
[1728492186304,1.78815985,61851.0,61849.0,0.01618]
[1728492186705,1.78915985,61851.0,61849.0,0.01618]
[1728492187204,1.78915985,61851.0,61839.0,0.0004]
[1728492187205,0.565933,61850.0,61839.0,0.0004]
[1728492187501,0.080906,61840.0,61839.0,0.0004]
[1728492187806,0.632106,61840.0,61839.0,0.0004]
[1728492188407,0.722106,61840.0,61839.0,0.0004]
[1728492188907,0.723106,61840.0,61839.0,0.0034]
[1728492189207,0.724106,61840.0,61839.0,0.0034]
[1728492189709,0.080911,61836.0,61835.0,0.01658]
[1728492189909,0.081311,61836.0,61835.0,0.01658]
[1728492190103,0.081311,61836.0,61835.0,0.0004]
[1728492190297,1.166471,61836.0,61835.0,0.0004]
[1728492190506,0.080924,61826.0,61825.0,0.00242619]
[1728492190703,0.722124,61826.0,61825.0,0.00242619]
[1728492191008,1.942124,61826.0,61825.0,0.00242619]
[1728492191412,1.942124,61826.0,61825.0,0.08335219]
[1728492191709,1.943124,61826.0,61825.0,0.08635219]
[1728492191909,1.582324,61826.0,61825.0,0.08635219]
[1728492192207,1.5014,61826.0,61825.0,0.08635219]
[1728492192410,0.080917,61832.0,61831.0,0.080915]
[1728492193409,0.080914,61834.0,61833.0,0.080913]
[1728492194510,0.0004,61836.0,61835.0,0.080912]
[1728492195612,0.0004,61836.0,61835.0,0.441712]
[1728492195815,0.082311,61836.0,61835.0,0.441712]
[1728492196606,0.0014,61836.0,61835.0,0.441712]
[1728492197716,0.0024,61836.0,61835.0,0.442712]
[1728492198511,0.0004,61840.0,61839.0,0.080907]
[1728492198809,0.080911,61836.0,61835.0,0.443111]
[1728492199205,0.081311,61836.0,61835.0,0.443111]
[1728492200615,0.081311,61836.0,61835.0,0.442111]
[1728492201513,0.0024,61836.0,61835.0,0.447111]
[1728492204621,0.0024,61836.0,61835.0,1.532271]
[1728492204813,0.0004,61840.0,61839.0,0.080907]
[1728492205019,0.0004,61840.0,61839.0,0.360907]
[1728492206220,0.08091,61837.0,61836.0,0.08091]
[1728492207521,0.081307,61840.0,61839.0,0.080907]
[1728492207826,0.082307,61840.0,61839.0,0.083907]
[1728492208521,0.081307,61840.0,61839.0,0.080907]
[1728492208720,0.082307,61840.0,61839.0,0.084907]
[1728492209925,0.082307,61840.0,61839.0,0.004]
[1728492210222,1.55832,61840.0,61839.0,0.0022]
[1728492210420,0.080911,61836.0,61835.0,0.0008]
[1728492210725,0.270911,61836.0,61835.0,0.0008]
[1728492211027,1.456071,61836.0,61835.0,0.0008]
[1728492211627,1.457071,61836.0,61835.0,0.0038]
[1728492211926,1.458071,61836.0,61835.0,0.0068]
[1728492214023,0.372911,61836.0,61835.0,0.0068]
[1728492214225,0.272911,61836.0,61835.0,0.0068]
[1728492216432,0.28113567,61836.0,61835.0,0.0068]
[1728492216823,0.082911,61836.0,61835.0,0.0068]
[1728492218837,0.082911,61836.0,61835.0,0.1017]
[1728492220529,0.272911,61836.0,61835.0,0.22264212]
[1728492220741,0.18383546,61836.0,61835.0,0.36680049]
[1728492220929,0.20806205,61836.0,61835.0,0.36680049]
[1728492221431,0.20806205,61836.0,61835.0,0.24585837]
[1728492222142,0.20806205,61836.0,61835.0,0.1017]
[1728492223436,0.080907,61839.0,61835.0,0.1017]
[1728492223437,0.080907,61839.0,61835.0,0.372612]
[1728492223633,0.0004,61840.0,61839.0,0.080907]
[1728492225940,0.0809,61845.0,61844.0,0.080899]
[1728492226140,0.0809,61845.0,61839.0,1.166027]
[1728492226141,0.080906,61842.0,61841.0,0.080904]
[1728492226333,0.080906,61840.0,61839.0,0.0014]
[1728492226534,0.270906,61840.0,61839.0,0.0014]
[1728492226835,0.271906,61840.0,61839.0,0.0034]
[1728492227034,0.271906,61840.0,61839.0,0.0024]
[1728492227844,0.270906,61840.0,61839.0,0.0004]
[1728492228543,0.270906,61840.0,61839.0,0.0014]
[1728492229144,0.270906,61840.0,61839.0,0.082307]
[1728492229450,0.270906,61840.0,61839.0,0.084307]
[1728492230038,0.270906,61840.0,61839.0,0.0034]
[1728492230237,0.270906,61840.0,61839.0,0.084307]
[1728492231037,0.080904,61843.0,61842.0,0.080902]
[1728492231542,0.080904,61843.0,61842.0,0.2004139]
[1728492231746,0.081299,61846.0,61845.0,0.080899]
[1728492232661,0.080902,61844.0,61843.0,0.080902]
[1728492232837,0.270902,61844.0,61843.0,0.080902]
[1728492233943,0.271902,61844.0,61843.0,0.080902]
[1728492234350,0.270902,61844.0,61843.0,0.081902]
[1728492234945,0.0004,61846.0,61843.0,0.081902]
[1728492235150,0.0004,61846.0,61845.0,0.080899]
[1728492235347,0.081298,61846.0,61845.0,0.080899]
[1728492236346,0.083298,61846.0,61845.0,0.080899]
[1728492236746,0.002,61846.0,61845.0,0.34300921]
[1728492236946,0.082898,61846.0,61845.0,0.34300921]
[1728492237951,0.083898,61846.0,61845.0,0.34300921]
[1728492239254,0.083898,61846.0,61845.0,0.34214597]
[1728492239650,0.083898,61846.0,61845.0,0.26124697]
[1728492239851,0.083898,61846.0,61845.0,0.1194159]
[1728492240646,0.083898,61846.0,61845.0,0.21622169]
[1728492240647,0.03531915,61846.0,61845.0,0.21622169]
[1728492240852,0.03531915,61846.0,61845.0,0.08107735]
[1728492241158,0.03531915,61846.0,61845.0,0.0004]
[1728492241355,1.53531915,61846.0,61845.0,0.0004]
[1728492242457,1.53531915,61846.0,61845.0,0.06496488]
[1728492242671,1.53531915,61846.0,61845.0,0.0004]
[1728492242958,1.53531915,61846.0,61845.0,0.06496488]
[1728492244266,1.53531915,61846.0,61845.0,0.0004]
[1728492248565,0.03531915,61846.0,61845.0,0.081299]
[1728492248765,0.001,61846.0,61845.0,0.081299]
[1728492251056,0.001,61846.0,61845.0,0.08963821]
[1728492251261,0.00242601,61849.0,61848.0,0.080895]
[1728492251461,0.08332001,61849.0,61848.0,0.080895]
[1728492252162,0.08332001,61849.0,61847.0,0.01618]
[1728492252163,0.080895,61848.0,61847.0,0.01618]
[1728492253365,0.01142601,61849.0,61847.0,0.01618]
[1728492253366,0.01142601,61849.0,61847.0,0.27627973]
[1728492253564,0.00642601,61849.0,61848.0,0.26009973]
[1728492253767,0.00242601,61849.0,61848.0,0.26009973]
[1728492254064,0.08332001,61849.0,61848.0,0.26009973]
[1728492254660,0.08632001,61849.0,61848.0,0.26009973]
[1728492255257,0.08832001,61849.0,61848.0,0.34099473]
[1728492255459,0.09232001,61849.0,61848.0,0.34099473]
[1728492256269,0.10050847,61849.0,61848.0,0.34099473]
[1728492256863,0.09232001,61849.0,61848.0,0.34099473]
[1728492257060,0.09232001,61849.0,61848.0,0.34094532]
[1728492258355,0.080891,61852.0,61848.0,0.34094532]
[1728492258563,0.080891,61852.0,61851.0,0.080891]
[1728492258767,0.080891,61852.0,61851.0,0.34094132]
[1728492259467,0.080891,61852.0,61851.0,0.080891]
[1728492259671,0.080891,61852.0,61851.0,0.34069425]
[1728492259967,0.088891,61852.0,61851.0,0.34069425]
[1728492260565,0.092891,61852.0,61851.0,0.080891]
[1728492261165,0.092891,61852.0,61849.0,0.04843146]
[1728492261166,0.012,61852.0,61849.0,0.04843146]
[1728492261371,0.270894,61850.0,61849.0,0.080893]